fUST/lending_fUST_20250206
["ID","MTS","AMOUNT","RATE_DAILY","PERIOD"]
[351821097,1738801846739,-500.0,0.00013835,2]
[351821098,1738801846748,-1108.83,0.00013835,2]
[351821099,1738801846758,-500.0,0.00013835,2]
[351821100,1738801846767,-646.3,0.00013835,2]
[351821101,1738801846776,-500.0,0.00013835,2]
[351821102,1738801846786,-151.0,0.00013835,2]
[351821103,1738801846795,-502.68,0.00013835,2]
[351821104,1738801846804,-611.88,0.00013835,2]
[351821105,1738801846814,-500.0,0.00013835,2]
[351821106,1738801846823,-500.0,0.00013835,2]
[351821107,1738801846833,-695.02,0.00013835,2]
[351821108,1738801846843,-500.0,0.00013835,2]
[351821109,1738801846853,-536.18,0.00013835,2]
[351821110,1738801846863,-637.59028457,0.00013835,2]
[351821111,1738801846873,-1165.74,0.00013835,2]
[351821112,1738801846883,-748.49,0.00013835,2]
[351821113,1738801846893,-500.0,0.00013835,2]
[351821114,1738801846902,-977.79,0.00013835,2]
[351821115,1738801846913,-500.0,0.00013835,2]
[351821116,1738801846922,-500.0,0.00013835,2]
[351821117,1738801846932,-683.38,0.00013835,2]
[351821118,1738801846941,-500.0,0.00013835,2]
[351821119,1738801846955,-247.035217,0.00013835,2]
[351821120,1738801846966,-500.0,0.00013835,2]
[351821121,1738801846977,-500.0,0.00013835,2]
[351821122,1738801846992,-3341.22,0.00013835,2]
[351821123,1738801847003,-500.0,0.00013835,2]
[351821124,1738801847013,-617.07,0.00013835,2]
[351821125,1738801847025,-713.88,0.00013835,2]
[351821126,1738801847034,-500.0,0.00013835,2]
[351821127,1738801847044,-500.0,0.00013835,2]
[351821128,1738801847054,-500.0,0.00013835,2]
[351821129,1738801847065,-160.753284,0.00013835,2]
[351821130,1738801847074,-160.753284,0.00013835,2]
[351821131,1738801847083,-1453.57,0.00013835,2]
[351821132,1738801847093,-791.93,0.00013835,2]
[351821133,1738801847102,-1381.66,0.00013835,2]
[351821134,1738801847112,-160.753284,0.00013835,2]
[351821135,1738801847121,-160.753284,0.00013835,2]
[351821136,1738801847131,-287.124491,0.00013835,2]
[351821137,1738801847141,-500.0,0.00013835,2]
[351821138,1738801847152,-500.0,0.00013835,2]
[351821139,1738801847166,-151.0,0.00013835,2]
[351821140,1738801847176,-151.0,0.00013835,2]
[351821141,1738801847187,-1697.96,0.00013835,2]
[351821142,1738801847198,-500.0,0.00013835,2]
[351821143,1738801847208,-151.0,0.00013835,2]
[351821144,1738801847219,-1324.46,0.00013835,2]
[351821145,1738801847229,-505.87,0.00013835,2]
[351821146,1738801847239,-500.0,0.00013835,2]
[351821147,1738801847249,-500.0,0.00013835,2]
[351821148,1738801847259,-202.475482,0.00013835,2]
[351821149,1738801847269,-202.475482,0.00013835,2]
[351821150,1738801847279,-151.0,0.00013835,2]
[351821151,1738801847289,-202.475482,0.00013835,2]
[351821152,1738801847299,-202.475482,0.00013835,2]
[351821153,1738801847309,-710.31,0.00013835,2]
[351821154,1738801847319,-500.0,0.00013835,2]
[351821155,1738801847329,-500.0,0.00013835,2]
[351821156,1738801847339,-500.0,0.00013835,2]
[351821157,1738801847349,-500.0,0.00013835,2]
[351821158,1738801847358,-500.0,0.00013835,2]
[351821159,1738801847369,-500.0,0.00013835,2]
[351821160,1738801847378,-500.0,0.00013835,2]
[351821161,1738801847388,-953.77,0.00013835,2]
[351821162,1738801847397,-903.76,0.00013835,2]
[351821163,1738801847407,-672.61,0.00013835,2]
[351821164,1738801847416,-500.0,0.00013835,2]
[351821165,1738801847425,-501.21,0.00013835,2]
[351821166,1738801847434,-151.0,0.00013835,2]
[351821167,1738801847443,-296.795859,0.00013835,2]
[351821168,1738801847452,-563.01,0.00013835,2]
[351821169,1738801847463,-830.65,0.00013835,2]
[351821170,1738801847474,-780.32,0.00013835,2]
[351821171,1738801847486,-608.3,0.00013835,2]
[351821172,1738801847495,-500.0,0.00013835,2]
[351821173,1738801847504,-500.0,0.00013835,2]
[351821174,1738801847514,-500.0,0.00013835,2]
[351821175,1738801847523,-151.0,0.00013835,2]
[351821176,1738801847533,-284.400599,0.00013835,2]
[351821177,1738801847542,-500.0,0.00013835,2]
[351821178,1738801847551,-500.0,0.00013835,2]
[351821179,1738801847560,-500.0,0.00013835,2]
[351821180,1738801847569,-513.96,0.00013835,2]
[351821181,1738801847578,-755.74,0.00013835,2]
[351821182,1738801847588,-500.0,0.00013835,2]
[351821183,1738801847597,-2687.79,0.00013835,2]
[351821184,1738801847606,-500.0,0.00013835,2]
[351821185,1738801847615,-500.0,0.00013835,2]
[351821186,1738801847625,-500.0,0.00013835,2]
[351821187,1738801847636,-915.95,0.00013835,2]
[351821188,1738801847646,-801.21,0.00013835,2]
[351821189,1738801847656,-500.0,0.00013835,2]
[351821190,1738801847665,-500.0,0.00013835,2]
[351821191,1738801847675,-500.0,0.00013835,2]
[351821192,1738801847684,-500.0,0.00013835,2]
[351821193,1738801847695,-500.0,0.00013835,2]
[351821194,1738801847705,-1228.82,0.00013835,2]
[351821195,1738801847715,-500.0,0.00013835,2]
[351821196,1738801847725,-618.35,0.00013835,2]
[351821197,1738801847736,-2406.95,0.00013835,2]
[351821198,1738801847746,-1000.0,0.00013835,2]
[351821199,1738801847757,-500.0,0.00013835,2]
[351821200,1738801847768,-500.0,0.00013835,2]
[351821201,1738801847779,-500.0,0.00013835,2]
[351821202,1738801847789,-151.0,0.00013835,2]
[351821203,1738801847799,-151.0,0.00013835,2]
[351821204,1738801847808,-500.0,0.00013835,2]
[351821205,1738801847818,-500.0,0.00013835,2]
[351821206,1738801847828,-151.0,0.00013835,2]
[351821207,1738801847838,-151.0,0.00013835,2]
[351821208,1738801847848,-961.39,0.00013835,2]
[351821209,1738801847857,-188.988048,0.00013835,2]
[351821210,1738801847867,-612.72,0.00013835,2]
[351821211,1738801847876,-500.0,0.00013835,2]
[351821212,1738801847886,-500.0,0.00013835,2]
[351821213,1738801847896,-510.12,0.00013835,2]
[351821214,1738801847906,-592.28,0.00013835,2]
[351821215,1738801847917,-500.0,0.00013835,2]
[351821216,1738801847927,-500.0,0.00013835,2]
[351821217,1738801847937,-500.0,0.00013835,2]
[351821218,1738801847947,-999.62,0.00013835,2]
[351821219,1738801847956,-7754.91,0.00013835,2]
[351821220,1738801847967,-500.0,0.00013835,2]
[351821221,1738801847976,-35158.81,0.00013835,2]
[351821222,1738801847986,-5132.89,0.00013835,2]
[351821223,1738801847995,-738.14,0.00013835,2]
[351821224,1738801848005,-4913.9,0.00013835,2]
[351821225,1738801848015,-500.0,0.00013835,2]
[351821226,1738801848024,-500.0,0.00013835,2]
[351821227,1738801848035,-1136.84,0.00013835,2]
[351821228,1738801848045,-1396.49,0.00013835,2]
[351821229,1738801848055,-151.0,0.00013835,2]
[351821230,1738801848065,-151.0,0.00013835,2]
[351821231,1738801848075,-2388.4,0.00013835,2]
[351821232,1738801848084,-500.0,0.00013835,2]
[351821233,1738801848094,-4237.28,0.00013835,2]
[351821234,1738801848103,-500.0,0.00013835,2]
[351821235,1738801848113,-972.98,0.00013835,2]
[351821236,1738801848260,-500.0,0.00013835,2]
[351821237,1738801848271,-1375.94,0.00013835,2]
[351821238,1738801848282,-916.01,0.00013835,2]
[351821239,1738801848293,-500.41,0.00013835,2]
[351821240,1738801848303,-1934.31,0.00013835,2]
[351821241,1738801848314,-540.18,0.00013835,2]
[351821242,1738801848325,-500.0,0.00013835,2]
[351821243,1738801848335,-506.99,0.00013835,2]
[351821244,1738801848344,-2208.22,0.00013835,2]
[351821245,1738801848354,-151.0,0.00013835,2]
[351821246,1738801848365,-151.0,0.00013835,2]
[351821247,1738801848375,-500.0,0.00013835,2]
[351821248,1738801848386,-500.0,0.00013835,2]
[351821249,1738801848396,-670.9,0.00013835,2]
[351821250,1738801848406,-500.0,0.00013835,2]
[351821251,1738801848416,-850.9,0.00013835,2]
[351821252,1738801848426,-151.0,0.00013835,2]
[351821253,1738801848435,-151.0,0.00013835,2]
[351821254,1738801848445,-151.0,0.00013835,2]
[351821255,1738801848455,-500.0,0.00013835,2]
[351821256,1738801848465,-151.0,0.00013835,2]
[351821257,1738801848476,-806.3,0.00013835,2]
[351821258,1738801848487,-151.0,0.00013835,2]
[351821259,1738801848498,-151.0,0.00013835,2]
[351821260,1738801848509,-465.97352666,0.00013835,2]
[351821261,1738801848519,-6805.75,0.00013835,2]
[351821262,1738801848529,-500.0,0.00013835,2]
[351821263,1738801848539,-500.0,0.00013835,2]
[351821264,1738801848549,-500.0,0.00013835,2]
[351821265,1738801848559,-500.0,0.00013835,2]
[351821266,1738801848569,-500.0,0.00013835,2]
[351821267,1738801848580,-1351.45,0.00013835,2]
[351821268,1738801848591,-500.0,0.00013835,2]
[351821269,1738801848601,-2349.3,0.00013835,2]
[351821270,1738801848612,-500.0,0.00013835,2]
[351821271,1738801848622,-184.359772,0.00013835,2]
[351821272,1738801848632,-151.0,0.00013835,2]
[351821273,1738801848642,-184.359772,0.00013835,2]
[351821274,1738801848652,-151.0,0.00013835,2]
[351821275,1738801848662,-2262.6,0.00013835,2]
[351821276,1738801848672,-618.65,0.00013835,2]
[351821277,1738801848683,-184.359772,0.00013835,2]
[351821278,1738801848693,-184.359772,0.00013835,2]
[351821279,1738801848703,-500.0,0.00013835,2]
[351821280,1738801848713,-500.0,0.00013835,2]
[351821281,1738801848723,-500.0,0.00013835,2]
[351821282,1738801848734,-872.55,0.00013835,2]
[351821283,1738801848744,-521.23,0.00013835,2]
[351821284,1738801848755,-151.0,0.00013835,2]
[351821285,1738801848765,-151.0,0.00013835,2]
[351821286,1738801848775,-5509.78,0.00013835,2]
[351821287,1738801848785,-151.0,0.00013835,2]
[351821288,1738801848795,-151.0,0.00013835,2]
[351821289,1738801848805,-151.0,0.00013835,2]
[351821290,1738801848815,-500.0,0.00013835,2]
[351821291,1738801848825,-500.0,0.00013835,2]
[351821292,1738801848836,-151.0,0.00013835,2]
[351821293,1738801848845,-510.18,0.00013835,2]
[351821294,1738801848856,-500.0,0.00013835,2]
[351821295,1738801848865,-500.0,0.00013835,2]
[351821296,1738801848875,-10815.96,0.00013835,2]
[351821297,1738801848886,-656.68,0.00013835,2]
[351821298,1738801848897,-500.0,0.00013835,2]
[351821299,1738801848907,-2253.23,0.00013835,2]
[351821300,1738801848916,-500.0,0.00013835,2]
[351821301,1738801848924,-500.0,0.00013835,2]
[351821302,1738801848932,-30924.67,0.00013835,2]
[351821303,1738801848940,-553.62,0.00013835,2]
[351821304,1738801848948,-4479.43,0.00013835,2]
[351821305,1738801848955,-542.95,0.00013835,2]
[351821306,1738801848964,-500.0,0.00013835,2]
[351821307,1738801848974,-92252.92,0.00013835,2]
[351821308,1738801848983,-597.23,0.00013835,2]
[351821309,1738801848993,-500.0,0.00013835,2]
[351821310,1738801849003,-987.86,0.00013835,2]
[351821311,1738801849013,-2617.82,0.00013835,2]
[351821312,1738801849023,-1688.65,0.00013835,2]
[351821313,1738801849033,-500.0,0.00013835,2]
[351821314,1738801849044,-500.0,0.00013835,2]
[351821315,1738801849053,-573.58,0.00013835,2]
[351821316,1738801849063,-1967.63,0.00013835,2]
[351821317,1738801849072,-1221.36,0.00013835,2]
[351821318,1738801849082,-500.0,0.00013835,2]
[351821319,1738801849091,-500.0,0.00013835,2]
[351821320,1738801849101,-500.0,0.00013835,2]
[351821321,1738801849110,-2341.82,0.00013835,2]
[351821322,1738801849120,-2763.71,0.00013835,2]
[351821323,1738801849130,-500.0,0.00013835,2]
[351821324,1738801849140,-748.8,0.00013835,2]
[351821325,1738801849150,-2691.66,0.00013835,2]
[351821326,1738801849163,-1140.96,0.00013835,2]
[351821327,1738801849172,-500.0,0.00013835,2]
[351821328,1738801849182,-2677.48,0.00013835,2]
[351821329,1738801849191,-154.119608,0.00013835,2]
[351821330,1738801849200,-664.49,0.00013835,2]
[351821331,1738801849210,-472.420829,0.00013835,2]
[351821332,1738801849219,-472.420829,0.00013835,2]
[351821333,1738801849228,-561.31,0.00013835,2]
[351821334,1738801849239,-472.420829,0.00013835,2]
[351821335,1738801849247,-3351.37,0.00013835,2]
[351821336,1738801849256,-472.420829,0.00013835,2]
[351821337,1738801849266,-500.0,0.00013835,2]
[351821338,1738801849275,-527.63,0.00013835,2]
[351821339,1738801849283,-287.356016,0.00013835,2]
[351821340,1738801849293,-287.356016,0.00013835,2]
[351821341,1738801849302,-500.0,0.00013835,2]
[351821342,1738801849312,-287.356016,0.00013835,2]
[351821343,1738801849321,-287.356016,0.00013835,2]
[351821344,1738801849331,-151.0,0.00013835,2]
[351821345,1738801849341,-2525.01,0.00013835,2]
[351821346,1738801849351,-154.3508,0.00013835,2]
[351821347,1738801849361,-151.0,0.00013835,2]
[351821348,1738801849371,-151.0,0.00013835,2]
[351821349,1738801849381,-695.75,0.00013835,2]
[351821350,1738801849392,-838.97,0.00013835,2]
[351821351,1738801849402,-1000.0,0.00013835,2]
[351821352,1738801849411,-151.0,0.00013835,2]
[351821353,1738801849421,-500.0,0.00013835,2]
[351821354,1738801849431,-151.0,0.00013835,2]
[351821355,1738801849441,-151.0,0.00013835,2]
[351821356,1738801849451,-500.0,0.00013835,2]
[351821357,1738801849460,-500.0,0.00013835,2]
[351821358,1738801849471,-500.0,0.00013835,2]
[351821359,1738801849480,-500.0,0.00013835,2]
[351821360,1738801849490,-7415.9,0.00013835,2]
[351821361,1738801849500,-500.0,0.00013835,2]
[351821362,1738801849509,-1164.61,0.00013835,2]
[351821363,1738801849519,-500.0,0.00013835,2]
[351821364,1738801849528,-588.5,0.00013835,2]
[351821365,1738801849539,-496.18771056,0.00013835,2]
[351821366,1738801849550,-2433.62,0.00013835,2]
[351821367,1738801849560,-500.0,0.00013835,2]
[351821368,1738801849571,-722.76,0.00013835,2]
[351821369,1738801849580,-602.46,0.00013835,2]
[351821370,1738801849590,-683.69,0.00013835,2]
[351821371,1738801849600,-500.0,0.00013835,2]
[351821372,1738801849609,-500.0,0.00013835,2]
[351821373,1738801849619,-3508.95,0.00013835,2]
[351821374,1738801849632,-500.0,0.00013835,2]
[351821375,1738801849643,-500.0,0.00013835,2]
[351821376,1738801849655,-500.0,0.00013835,2]
[351821377,1738801849664,-500.0,0.00013835,2]
[351821378,1738801849674,-500.0,0.00013835,2]
[351821379,1738801849684,-500.0,0.00013835,2]
[351821380,1738801849694,-844.9,0.00013835,2]
[351821381,1738801849705,-500.0,0.00013835,2]
[351821382,1738801849715,-500.0,0.00013835,2]
[351821383,1738801849726,-591.38,0.00013835,2]
[351821384,1738801849736,-151.0,0.00013835,2]
[351821385,1738801849745,-151.0,0.00013835,2]
[351821386,1738801849754,-500.0,0.00013835,2]
[351821387,1738801849764,-500.0,0.00013835,2]
[351821388,1738801849773,-500.0,0.00013835,2]
[351821389,1738801849783,-500.0,0.00013835,2]
[351821390,1738801849793,-11866.61,0.00013835,2]
[351821391,1738801849802,-151.0,0.00013861,2]
[351821392,1738801849812,-151.0,0.00013861,2]
[351821393,1738801849821,-151.0,0.00013861,2]
[351821394,1738801849830,-151.0,0.00013861,2]
[351821395,1738801849839,-151.0,0.00013861,2]
[351821396,1738801849848,-500.0,0.00013873,2]
[351821397,1738801849857,-500.0,0.00013873,2]
[351821398,1738801849867,-151.0,0.000139,2]
[351821399,1738801849876,-151.0,0.000139,2]
[351821400,1738801849885,-151.0,0.000139,2]
[351821401,1738801849894,-4968.20641107,0.000139,2]
[351821402,1738801849904,-4169.50472151,0.00013965,2]
[351821403,1738801849913,-152.554602,0.00013971,2]
[351821404,1738801849922,-151.0,0.00013971,2]
[351821405,1738801849932,-151.0,0.00013971,2]
[351821406,1738801849941,-344.5450552,0.00013972,2]
[351821407,1738801849951,-500.0,0.00013972,2]
[351821408,1738801849960,-500.0,0.00013972,2]
[351821409,1738801849970,-500.0,0.00013972,2]
[351821410,1738801849979,-245.40381372,0.00013972,2]
[351821411,1738801849988,-708.9,0.00013972,2]
[351821412,1738801849998,-500.0,0.00013972,2]
[351821413,1738801850007,-500.0,0.00013972,2]
[351821414,1738801850016,-500.0,0.00013972,2]
[351821415,1738801850026,-577.25341489,0.00013972,2]
[351821416,1738801850035,-151.0,0.00013972,2]
[351821417,1738801850044,-152.46889,0.00013972,2]
[351821418,1738801850054,-500.0,0.00013972,2]
[351821419,1738801850064,-500.0,0.00013972,2]
[351821420,1738801850073,-500.0,0.00013972,2]
[351821421,1738801850083,-723.85,0.00013972,2]
[351821422,1738801850092,-500.0,0.00013972,2]
[351821423,1738801850101,-502.96,0.00013972,2]
[351821424,1738801850110,-500.0,0.00013972,2]
[351821425,1738801850120,-999.35,0.00013972,2]
[351821426,1738801850131,-500.0,0.00013972,2]
[351821427,1738801850141,-765.17,0.00013972,2]
[351821428,1738801850150,-500.0,0.00013972,2]
[351821429,1738801850165,-500.0,0.00013972,2]
[351821430,1738801850177,-500.0,0.00013972,2]
[351821431,1738801850186,-500.0,0.00013972,2]
[351821432,1738801850195,-500.0,0.00013972,2]
[351821433,1738801850206,-500.0,0.00013972,2]
[351821434,1738801850217,-500.0,0.00013972,2]
[351821435,1738801850228,-500.0,0.00013972,2]
[351821436,1738801850238,-500.0,0.00013972,2]
[351821437,1738801850248,-500.0,0.00013972,2]
[351821438,1738801850257,-500.0,0.00013972,2]
[351821439,1738801850268,-585.66,0.00013972,2]
[351821440,1738801850279,-631.21,0.00013972,2]
[351821441,1738801850288,-500.0,0.00013972,2]
[351821442,1738801850298,-383.13061394,0.00013972,2]
[351821443,1738801850307,-500.0,0.00013972,2]
[351821444,1738801850317,-500.0,0.00013972,2]
[351821445,1738801850326,-500.0,0.00013972,2]
[351821446,1738801850336,-366.09394727,0.00013972,2]
[351821447,1738801850346,-500.0,0.00013972,2]
[351821448,1738801850355,-500.0,0.00013972,2]
[351821449,1738801850365,-500.0,0.00013972,2]
[351821450,1738801850374,-1484.49,0.00013972,2]
[351821451,1738801850384,-554.41,0.00013972,2]
[351821452,1738801850394,-500.0,0.00013972,2]
[351821453,1738801850403,-649.02,0.00013972,2]
[351821454,1738801850412,-500.0,0.00013972,2]
[351821455,1738801850421,-500.0,0.00013972,2]
[351821456,1738801850431,-500.0,0.00013972,2]
[351821457,1738801850440,-500.0,0.00013972,2]
[351821458,1738801850449,-151.0,0.00013972,2]
[351821459,1738801850459,-151.0,0.00013972,2]
[351821460,1738801850468,-500.0,0.00013972,2]
[351821461,1738801850477,-500.0,0.00013972,2]
[351821462,1738801850487,-151.0,0.00013972,2]
[351821463,1738801850496,-524.36,0.00013972,2]
[351821464,1738801850505,-500.0,0.00013972,2]
[351821465,1738801850515,-500.0,0.00013972,2]
[351821466,1738801850525,-948.8,0.00013972,2]
[351821467,1738801850534,-509.19,0.00013972,2]
[351821468,1738801850544,-500.0,0.00013972,2]
[351821469,1738801850553,-151.0,0.00013972,2]
[351821470,1738801850562,-504.39,0.00013972,2]
[351821471,1738801850572,-500.0,0.00013972,2]
[351821472,1738801850580,-500.0,0.00013972,2]
[351821473,1738801850590,-1540.88,0.00013972,2]
[351821474,1738801850599,-185.72420012,0.00013972,2]
[351821475,1738801850608,-721.35,0.00013972,2]
[351821476,1738801850619,-500.0,0.00013972,2]
[351821477,1738801850628,-500.0,0.00013972,2]
[351821478,1738801850638,-565.99,0.00013972,2]
[351821479,1738801850648,-500.0,0.00013972,2]
[351821480,1738801850658,-1569.32,0.00013972,2]
[351821481,1738801850668,-151.0,0.00013972,2]
[351821482,1738801850678,-788.86,0.00013972,2]
[351821483,1738801850687,-500.0,0.00013972,2]
[351821484,1738801850697,-500.0,0.00013972,2]
[351821485,1738801850707,-500.0,0.00013972,2]
[351821486,1738801850716,-1055.23,0.00013972,2]
[351821487,1738801850728,-500.0,0.00013972,2]
[351821488,1738801850737,-151.0,0.00013972,2]
[351821489,1738801850747,-580.52,0.00013972,2]
[351821490,1738801850756,-275.474401,0.00013972,2]
[351821491,1738801850765,-500.0,0.00013972,2]
[351821492,1738801850775,-500.0,0.00013972,2]
[351821493,1738801850784,-151.0,0.00013972,2]
[351821494,1738801850918,-1299.85,0.00013972,2]
[351821495,1738801850928,-151.0,0.00013972,2]
[351821496,1738801850937,-500.0,0.00013972,2]
[351821497,1738801850947,-927.21,0.00013972,2]
[351821498,1738801850956,-654.64,0.00013972,2]
[351821499,1738801850965,-500.0,0.00013972,2]
[351821500,1738801850975,-500.0,0.00013972,2]
[351821501,1738801850984,-500.0,0.00013972,2]
[351821502,1738801850994,-717.79,0.00013972,2]
[351821503,1738801851003,-591.16,0.00013972,2]
[351821504,1738801851012,-526.06,0.00013972,2]
[351821505,1738801851022,-500.0,0.00013972,2]
[351821506,1738801851032,-1151.06,0.00013972,2]
[351821507,1738801851041,-500.0,0.00013972,2]
[351821508,1738801851051,-2722.55,0.00013972,2]
[351821509,1738801851060,-500.0,0.00013972,2]
[351821510,1738801851069,-500.0,0.00013972,2]
[351821511,1738801851079,-500.0,0.00013972,2]
[351821512,1738801851088,-500.0,0.00013972,2]
[351821513,1738801851098,-500.0,0.00013972,2]
[351821514,1738801851108,-970.43,0.00013972,2]
[351821515,1738801851118,-2796.15,0.00013972,2]
[351821516,1738801851127,-151.0,0.00013972,2]
[351821517,1738801851138,-500.0,0.00013972,2]
[351821518,1738801851148,-500.0,0.00013972,2]
[351821519,1738801851162,-500.0,0.00013972,2]
[351821520,1738801851172,-810.26,0.00013972,2]
[351821521,1738801851182,-500.0,0.00013972,2]
[351821522,1738801851192,-500.0,0.00013972,2]
[351821523,1738801851202,-1752.62,0.00013972,2]
[351821524,1738801851212,-500.0,0.00013972,2]
[351821525,1738801851221,-500.0,0.00013972,2]
[351821526,1738801851231,-504.72,0.00013972,2]
[351821527,1738801851241,-500.0,0.00013972,2]
[351821528,1738801851251,-639.8,0.00013972,2]
[351821529,1738801851261,-1342.59,0.00013972,2]
[351821530,1738801851271,-500.0,0.00013972,2]
[351821531,1738801851281,-500.0,0.00013972,2]
[351821532,1738801851290,-1278.67,0.00013972,2]
[351821533,1738801851300,-500.0,0.00013972,2]
[351821534,1738801851309,-1108.83,0.00013972,2]
[351821535,1738801851318,-500.0,0.00013972,2]
[351821536,1738801851327,-646.3,0.00013972,2]
[351821537,1738801851336,-500.0,0.00013972,2]
[351821538,1738801851345,-502.68,0.00013972,2]
[351821539,1738801851355,-611.88,0.00013972,2]
[351821540,1738801851364,-500.0,0.00013972,2]
[351821541,1738801851374,-500.0,0.00013972,2]
[351821542,1738801851383,-695.02,0.00013972,2]
[351821543,1738801851394,-500.0,0.00013972,2]
[351821544,1738801851403,-536.18,0.00013972,2]
[351821545,1738801851413,-1165.74,0.00013972,2]
[351821546,1738801851422,-748.49,0.00013972,2]
[351821547,1738801851432,-977.79,0.00013972,2]
[351821548,1738801851442,-500.0,0.00013972,2]
[351821549,1738801851452,-500.0,0.00013972,2]
[351821550,1738801851461,-683.38,0.00013972,2]
[351821551,1738801851471,-500.0,0.00013972,2]
[351821552,1738801851480,-500.0,0.00013972,2]
[351821553,1738801851489,-500.0,0.00013972,2]
[351821554,1738801851499,-3341.22,0.00013972,2]
[351821555,1738801851508,-500.0,0.00013972,2]
[351821556,1738801851519,-617.07,0.00013972,2]
[351821557,1738801851531,-713.88,0.00013972,2]
[351821558,1738801851541,-500.0,0.00013972,2]
[351821559,1738801851550,-500.0,0.00013972,2]
[351821560,1738801851560,-160.753284,0.00013972,2]
[351821561,1738801851570,-1453.57,0.00013972,2]
[351821562,1738801851579,-160.753284,0.00013972,2]
[351821563,1738801851589,-791.93,0.00013972,2]
[351821564,1738801851598,-1381.66,0.00013972,2]
[351821565,1738801851608,-160.753284,0.00013972,2]
[351821566,1738801851618,-160.753284,0.00013972,2]
[351821567,1738801851627,-500.0,0.00013972,2]
[351821568,1738801851637,-1697.96,0.00013972,2]
[351821569,1738801851647,-500.0,0.00013972,2]
[351821570,1738801851656,-1324.46,0.00013972,2]
[351821571,1738801851665,-505.87,0.00013972,2]
[351821572,1738801851674,-500.0,0.00013972,2]
[351821573,1738801851683,-500.0,0.00013972,2]
[351821574,1738801851693,-202.475482,0.00013972,2]
[351821575,1738801851703,-202.475482,0.00013972,2]
[351821576,1738801851713,-202.475482,0.00013972,2]
[351821577,1738801851722,-710.31,0.00013972,2]
[351821578,1738801851732,-202.475482,0.00013972,2]
[351821579,1738801851741,-500.0,0.00013972,2]
[351821580,1738801851751,-500.0,0.00013972,2]
[351821581,1738801851761,-500.0,0.00013972,2]
[351821582,1738801851771,-500.0,0.00013972,2]
[351821583,1738801851781,-500.0,0.00013972,2]
[351821584,1738801851790,-953.77,0.00013972,2]
[351821585,1738801851800,-903.76,0.00013972,2]
[351821586,1738801851810,-672.61,0.00013972,2]
[351821587,1738801851820,-500.0,0.00013972,2]
[351821588,1738801851829,-501.21,0.00013972,2]
[351821589,1738801851838,-563.01,0.00013972,2]
[351821590,1738801851848,-830.65,0.00013972,2]
[351821591,1738801851858,-780.32,0.00013972,2]
[351821592,1738801851867,-608.3,0.00013972,2]
[351821593,1738801851879,-500.0,0.00013972,2]
[351821594,1738801851893,-500.0,0.00013972,2]
[351821595,1738801851903,-635.38989173,0.00013972,2]
[351821596,1738801851913,-500.0,0.00013972,2]